[Event "11th LCC Super Blitz 2019"]
[Site "London"]
[Date "2019.12.08"]
[Round "1.6"]
[White "Brass, Ezra"]
[Black "Klingher, Dominic"]
[Result "0-1"]
[ECO "C14"]
[WhiteElo "1628"]
[BlackElo "2071"]
[Annotator "NA"]
[PlyCount "82"]
[EventDate "2019.12.08"]
[EventType "swiss"]
[EventCountry "ENG"]
[SourceTitle "playchess.com"]
[Source "ChessBase"]
[SourceQuality "1"]
[TimeControl "180+2"]

1. e4 {[%emt 0:00:00]} e6 {[%emt 0:00:00]} 2. d4 {[%emt 0:00:01]} d5 {[%emt 0:00:01]} 3. Nc3 {[%emt 0:00:02]} Nf6 {[%emt 0:00:01]} 4. Bg5 {[%emt 0:00:02]} Be7 {[%emt 0:00:02]} 5. e5 {[%emt 0:00:03]} Nfd7 {[%emt 0:00:01]} 6. Be3 {[%emt 0:00:18]} c5 {[%emt 0:00:03]} 7. Nf3 {[%emt 0:00:06]} Nc6 {[%emt 0:00:02]} 8. Bb5 {[%emt 0:00:15]} cxd4 {[%emt 0:00:33]} 9. Bxd4 {[%emt 0:00:08]} Nxd4 {[%emt 0:00:14]} 10. Qxd4 {[%emt 0:00:09]} a6 {[%emt 0:00:04]} 11. Bd3 {[%emt 0:00:21]} Bc5 {[%emt 0:00:03]} 12. Qg4 {[%emt 0:00:07]} g6 {[%emt 0:00:13]} 13. h4 {[%emt 0:00:18]} h5 {[%emt 0:00:37]} 14. Qg3 {[%emt 0:00:21]} Rg8 {[%emt 0:00:03]} 15. Ng5 {[%emt 0:00:31]} Qe7 {[%emt 0:00:17]} 16. Qf4 {[%emt 0:00:13]} b5 {[%emt 0:00:11]} 17. a3 {[%emt 0:00:10]} Bb7 {[%emt 0:00:02]} 18. b4 {[%emt 0:00:06]} Bb6 {[%emt 0:00:05]} 19. O-O {[%emt 0:00:06]} Rf8 {[%emt 0:00:25]} 20. a4 {[%emt 0:00:03]} Rc8 {[%emt 0:00:15]} 21. Ne2 {[%emt 0:00:09]} Bc7 {[%emt 0:00:11]} 22. axb5 {[%emt 0:00:04]} Bxe5 {[%emt 0:00:02]} 23. Qe3 {[%emt 0:00:03]} axb5 24. Bxb5 {[%emt 0:00:02]} f6 {[%emt 0:00:13]} 25. Nf3 {[%emt 0:00:04]} Bxa1 {[%emt 0:00:03]} 26. Rxa1 {[%emt 0:00:02]} Kf7 {[%emt 0:00:00]} 27. Nfd4 {[%emt 0:00:02]} e5 {[%emt 0:00:03]} 28. Nb3 {[%emt 0:00:02]} Rc7 {[%emt 0:00:03]} 29. Ra7 {[%emt 0:00:02]} Rfc8 {[%emt 0:00:01]} 30. Nc3 {[%emt 0:00:03]} Rxc3 {[%emt 0:00:02]} 31. Qe2 {[%emt 0:00:04]} Bc6 {[%emt 0:00:03]} 32. Ba6 {[%emt 0:00:01]} Rb8 {[%emt 0:00:03]} 33. Bd3 {[%emt 0:00:01]} Qxb4 {[%emt 0:00:03]} 34. Qf3 {[%emt 0:00:04]} Qxh4 {[%emt 0:00:03]} 35. Rxd7+ {[%emt 0:00:03]} Bxd7 {[%emt 0:00:01]} 36. Qxd5+ {[%emt 0:00:01]} Be6 {[%emt 0:00:01]} 37. Qf3 {[%emt 0:00:03]} Qf4 {[%emt 0:00:02]} 38. Qe2 {[%emt 0:00:04]} Rbxb3 {[%emt 0:00:02]} 39. cxb3 {[%emt 0:00:00]} Rc1+ {[%emt 0:00:01]} 40. Qf1 {[%emt 0:00:02]} Rxf1+ {[%emt 0:00:02]} 41. Bxf1 {[%emt 0:00:01]} Bxb3 {[%emt 0:00:02]} 0-1

[Event "11th LCC Super Blitz 2019"]
[Site "London"]
[Date "2019.12.08"]
[Round "1.6"]
[White "Toh, Q Kane"]
[Black "Roberson, Peter T"]
[Result "0-1"]
[ECO "A65"]
[WhiteElo "1606"]
[BlackElo "2282"]
[Annotator "NA"]
[PlyCount "56"]
[EventDate "2019.12.08"]
[EventType "swiss"]
[EventCountry "ENG"]
[SourceTitle "playchess.com"]
[Source "ChessBase"]
[SourceQuality "1"]
[TimeControl "180+2"]

1. d4 {[%emt 0:00:00]} Nf6 {[%emt 0:00:00]} 2. c4 {[%emt 0:00:01]} e6 {[%emt 0:00:00]} 3. Nc3 {[%emt 0:00:00]} c5 {[%emt 0:00:02]} 4. d5 {[%emt 0:00:01]} exd5 {[%emt 0:00:01]} 5. cxd5 {[%emt 0:00:01]} d6 {[%emt 0:00:01]} 6. e4 {[%emt 0:00:02]} g6 {[%emt 0:00:01]} 7. Bd3 {[%emt 0:00:02]} Bg7 {[%emt 0:00:07]} 8. h3 {[%emt 0:00:02]} a6 {[%emt 0:00:04]} 9. a4 {[%emt 0:00:01]} Nbd7 {[%emt 0:00:01]} 10. Nf3 {[%emt 0:00:01]} Nh5 {[%emt 0:00:01]} 11. O-O {[%emt 0:00:07]} Ne5 {[%emt 0:00:02]} 12. Bc2 {[%emt 0:00:12]} O-O {[%emt 0:00:10]} 13. Be3 {[%emt 0:00:09]} Bd7 {[%emt 0:00:07]} 14. a5 {[%emt 0:00:07]} Rb8 {[%emt 0:00:18]} 15. Nxe5 {[%emt 0:00:12]} Bxe5 {[%emt 0:00:02]} 16. f4 {[%emt 0:00:05]} Bg7 {[%emt 0:00:01]} 17. Qd2 {[%emt 0:00:11]} b5 {[%emt 0:00:07]} 18. axb6 {[%emt 0:00:01]} Rxb6 {[%emt 0:00:03]} 19. Ra2 {[%emt 0:00:09]} Re8 {[%emt 0:00:17]} 20. e5 {[%emt 0:00:08]} dxe5 {[%emt 0:00:21]} 21. Bxc5 {[%emt 0:00:01]} exf4 {[%emt 0:00:05]} 22. Bxb6 {[%emt 0:00:53]} Qxb6+ 23. Kh2 {[%emt 0:00:05]} Re3 {[%emt 0:00:38]} 24. Re1 {[%emt 0:00:33]} Be5 {[%emt 0:00:02]} 25. Qf2 {[%emt 0:00:24]} f3+ {[%emt 0:00:21]} 26. Kh1 Ng3+ {[%emt 0:00:04]} 27. Kh2 {[%emt 0:00:05]} Rxe1 {[%emt 0:00:19]} 28. Qxe1 {[%emt 0:00:19]} f2 {[%emt 0:00:03]} 0-1

[Event "11th LCC Super Blitz 2019"]
[Site "London"]
[Date "2019.12.08"]
[Round "1.7"]
[White "Petrov, Vladimir Sergeev"]
[Black "Bergner, Matthias"]
[Result "1-0"]
[ECO "C06"]
[WhiteElo "2355"]
[BlackElo "1632"]
[Annotator "NA"]
[PlyCount "51"]
[EventDate "2019.12.08"]
[EventType "swiss"]
[EventCountry "ENG"]
[SourceTitle "playchess.com"]
[Source "ChessBase"]
[SourceQuality "1"]
[TimeControl "180+2"]

1. e4 {[%emt 0:00:01]} e6 {[%emt 0:00:00]} 2. d4 {[%emt 0:00:01]} d5 {[%emt 0:00:00]} 3. Nd2 {[%emt 0:00:01]} Nf6 {[%emt 0:00:02]} 4. e5 {[%emt 0:00:01]} Nfd7 {[%emt 0:00:01]} 5. Bd3 {[%emt 0:00:06]} c5 {[%emt 0:00:04]} 6. c3 {[%emt 0:00:02]} Nc6 {[%emt 0:00:04]} 7. Ne2 {[%emt 0:00:02]} Be7 {[%emt 0:00:03]} 8. O-O {[%emt 0:00:05]} O-O {[%emt 0:00:03]} 9. Nf3 {[%emt 0:00:07]} cxd4 {[%emt 0:00:05]} 10. cxd4 {[%emt 0:00:02]} f5 {[%emt 0:00:08]} 11. exf6 {[%emt 0:00:06]} Nxf6 {[%emt 0:00:05]} 12. Bf4 {[%emt 0:00:23]} Bd7 {[%emt 0:00:07]} 13. Rc1 {[%emt 0:00:12]} Rc8 {[%emt 0:00:04]} 14. Bb1 {[%emt 0:00:06]} a6 {[%emt 0:00:01]} 15. Ng3 {[%emt 0:00:20]} b5 {[%emt 0:00:05]} 16. a3 {[%emt 0:00:05]} Na5 {[%emt 0:00:14]} 17. Qd3 {[%emt 0:00:10]} Rxc1 {[%emt 0:00:29]} 18. Rxc1 {[%emt 0:00:03]} g6 {[%emt 0:00:44]} 19. Ne5 {[%emt 0:00:03]} Nc6 {[%emt 0:00:18]} 20. Nxc6 {[%emt 0:00:06]} Bxc6 {[%emt 0:00:02]} 21. Rxc6 {[%emt 0:00:02]} Qd7 {[%emt 0:00:22]} 22. Rc7 {[%emt 0:00:05]} Qe8 {[%emt 0:00:07]} 23. Be5 {[%emt 0:00:12]} Nd7 {[%emt 0:00:12]} 24. Ne2 {[%emt 0:00:23]} Nxe5 {[%emt 0:00:04]} 25. dxe5 {[%emt 0:00:02]} Qd8 {[%emt 0:00:15]} 26. Rc6 {[%emt 0:00:07]} 1-0

[Event "11th LCC Super Blitz 2019"]
[Site "London"]
[Date "2019.12.08"]
[Round "1.7"]
[White "Stoyanov, Viktor"]
[Black "Caceres De La Calle, Eduardo"]
[Result "1-0"]
[ECO "C90"]
[WhiteElo "2191"]
[BlackElo "1575"]
[Annotator "NA"]
[PlyCount "79"]
[EventDate "2019.12.08"]
[EventType "swiss"]
[EventCountry "ENG"]
[SourceTitle "playchess.com"]
[Source "ChessBase"]
[SourceQuality "1"]
[TimeControl "180+2"]

1. e4 {[%emt 0:00:00]} e5 {[%emt 0:00:00]} 2. Nf3 {[%emt 0:00:00]} Nc6 {[%emt 0:00:00]} 3. Bb5 {[%emt 0:00:01]} a6 {[%emt 0:00:01]} 4. Ba4 {[%emt 0:00:01]} Nf6 {[%emt 0:00:01]} 5. O-O {[%emt 0:00:02]} Be7 {[%emt 0:00:01]} 6. Re1 {[%emt 0:00:01]} d6 {[%emt 0:00:01]} 7. h3 {[%emt 0:00:05]} b5 {[%emt 0:00:01]} 8. Bb3 {[%emt 0:00:01]} Na5 {[%emt 0:00:01]} 9. d4 {[%emt 0:00:04]} Nxb3 {[%emt 0:00:05]} 10. axb3 {[%emt 0:00:01]} exd4 {[%emt 0:00:10]} 11. Nxd4 {[%emt 0:00:02]} Bb7 {[%emt 0:00:10]} 12. Nf5 {[%emt 0:00:08]} O-O {[%emt 0:00:14]} 13. Nc3 {[%emt 0:00:01]} Re8 {[%emt 0:00:20]} 14. Qf3 {[%emt 0:00:09]} Bf8 {[%emt 0:00:06]} 15. Qg3 {[%emt 0:00:06]} Nh5 {[%emt 0:00:22]} 16. Nh6+ {[%emt 0:00:17]} Kh8 {[%emt 0:00:09]} 17. Nxf7+ {[%emt 0:00:02]} Kg8 {[%emt 0:00:05]} 18. Nxd8 {[%emt 0:00:01]} Nxg3 {[%emt 0:00:04]} 19. Nxb7 {[%emt 0:00:01]} Nh5 {[%emt 0:00:13]} 20. Be3 {[%emt 0:00:05]} Nf6 {[%emt 0:00:11]} 21. f3 {[%emt 0:00:01]} Rab8 {[%emt 0:00:26]} 22. Na5 {[%emt 0:00:02]} Rbd8 {[%emt 0:00:02]} 23. Nc6 {[%emt 0:00:03]} Rd7 {[%emt 0:00:01]} 24. Rxa6 {[%emt 0:00:04]} d5 {[%emt 0:00:05]} 25. e5 {[%emt 0:00:19]} Nh5 {[%emt 0:00:11]} 26. Nxb5 {[%emt 0:00:06]} Ng3 {[%emt 0:00:05]} 27. Nbd4 {[%emt 0:00:07]} g6 {[%emt 0:00:11]} 28. Bf2 {[%emt 0:00:05]} Nh5 {[%emt 0:00:04]} 29. e6 {[%emt 0:00:07]} Rd6 {[%emt 0:00:07]} 30. e7 {[%emt 0:00:04]} Bg7 {[%emt 0:00:03]} 31. c3 {[%emt 0:00:06]} Bxd4 {[%emt 0:00:10]} 32. Bxd4 {[%emt 0:00:05]} Nf4 {[%emt 0:00:11]} 33. b4 {[%emt 0:00:04]} Nd3 {[%emt 0:00:05]} 34. Re2 {[%emt 0:00:04]} Nf4 {[%emt 0:00:01]} 35. Rd2 {[%emt 0:00:15]} Kf7 {[%emt 0:00:01]} 36. b5 {[%emt 0:00:02]} Ne6 {[%emt 0:00:06]} 37. Ne5+ {[%emt 0:00:02]} Kxe7 {[%emt 0:00:02]} 38. Rxd6 {[%emt 0:00:04]} cxd6 {[%emt 0:00:02]} 39. Nc6+ {[%emt 0:00:01]} Kd7 {[%emt 0:00:01]} 40. Nb4 {[%emt 0:00:04]} 1-0

[Event "11th LCC Super Blitz 2019"]
[Site "London"]
[Date "2019.12.08"]
[Round "1.7"]
[White "John, Joshua"]
[Black "Stepanyan, Henrik"]
[Result "1-0"]
[ECO "D32"]
[WhiteElo "1694"]
[BlackElo "2193"]
[Annotator "NA"]
[PlyCount "63"]
[EventDate "2019.12.08"]
[EventType "swiss"]
[EventCountry "ENG"]
[SourceTitle "playchess.com"]
[Source "ChessBase"]
[SourceQuality "1"]
[TimeControl "180+2"]

1. d4 {[%emt 0:00:00]} d5 {[%emt 0:00:00]} 2. Nf3 {[%emt 0:00:01]} Nf6 {[%emt 0:00:00]} 3. c4 {[%emt 0:00:02]} e6 {[%emt 0:00:01]} 4. Nc3 {[%emt 0:00:01]} c5 {[%emt 0:00:00]} 5. cxd5 {[%emt 0:00:14]} exd5 {[%emt 0:00:02]} 6. Bg5 {[%emt 0:00:21]} Be7 {[%emt 0:00:01]} 7. dxc5 {[%emt 0:00:04]} O-O {[%emt 0:00:04]} 8. e3 {[%emt 0:00:34]} Be6 {[%emt 0:00:13]} 9. b4 {[%emt 0:00:30]} b6 {[%emt 0:00:08]} 10. cxb6 {[%emt 0:00:20]} Qxb6 {[%emt 0:00:02]} 11. a3 {[%emt 0:00:08]} Nbd7 {[%emt 0:00:22]} 12. Be2 {[%emt 0:00:12]} Rfc8 {[%emt 0:00:01]} 13. Rc1 {[%emt 0:00:02]} a5 {[%emt 0:00:01]} 14. Na4 {[%emt 0:00:34]} Qb7 {[%emt 0:00:01]} 15. Nc5 {[%emt 0:00:09]} Nxc5 {[%emt 0:00:01]} 16. bxc5 {[%emt 0:00:01]} Ne4 {[%emt 0:00:27]} 17. Bxe7 {[%emt 0:00:03]} Qxe7 {[%emt 0:00:01]} 18. O-O {[%emt 0:00:02]} Rxc5 {[%emt 0:00:12]} 19. Qd4 {[%emt 0:00:03]} Rxc1 {[%emt 0:00:06]} 20. Rxc1 {[%emt 0:00:01]} Qxa3 {[%emt 0:00:01]} 21. Rc7 {[%emt 0:00:10]} Qd6 {[%emt 0:00:09]} 22. Rc1 {[%emt 0:00:02]} a4 {[%emt 0:00:02]} 23. Nd2 {[%emt 0:00:04]} Nxd2 {[%emt 0:00:06]} 24. Qxd2 {[%emt 0:00:01]} a3 {[%emt 0:00:01]} 25. Ra1 {[%emt 0:00:02]} Qc5 {[%emt 0:00:18]} 26. Rc1 {[%emt 0:00:05]} Qb6 {[%emt 0:00:03]} 27. Ra1 {[%emt 0:00:01]} g6 {[%emt 0:00:14]} 28. Qc3 {[%emt 0:00:02]} Qa7 {[%emt 0:00:08]} 29. h3 {[%emt 0:00:02]} a2 {[%emt 0:00:09]} 30. Bd1 {[%emt 0:00:01]} Rb8 {[%emt 0:00:26]} 31. Bb3 {[%emt 0:00:04]} Qa3 {[%emt 0:00:02]} 32. Rxa2 {[%emt 0:00:08]} 1-0

[Event "11th LCC Super Blitz 2019"]
[Site "London"]
[Date "2019.12.08"]
[Round "1.8"]
[White "Kirupakaran, Vishnu"]
[Black "Rishi, Thariani"]
[Result "1/2-1/2"]
[ECO "B00"]
[WhiteElo "1871"]
[BlackElo "2008"]
[Annotator "NA"]
[PlyCount "24"]
[EventDate "2019.12.08"]
[EventType "swiss"]
[EventCountry "ENG"]
[SourceTitle "playchess.com"]
[Source "ChessBase"]
[SourceQuality "1"]
[TimeControl "180+2"]

1. e4 {[%emt 0:00:00]} b6 {[%emt 0:00:00]} 2. d4 {[%emt 0:00:02]} Bb7 {[%emt 0:00:00]} 3. Bd3 {[%emt 0:00:06]} d6 {[%emt 0:00:00]} 4. c4 {[%emt 0:00:02]} Nd7 {[%emt 0:00:01]} 5. Nf3 {[%emt 0:00:45]} g6 {[%emt 0:00:03]} 6. Qe2 {[%emt 0:00:41]} Bg7 {[%emt 0:00:02]} 7. Nc3 {[%emt 0:00:12]} c5 {[%emt 0:00:12]} 8. d5 {[%emt 0:00:22]} Ngf6 {[%emt 0:00:34]} 9. O-O O-O {[%emt 0:00:00]} 10. Kh1 {[%emt 0:00:06]} h6 {[%emt 0:00:00]} 11. Be3 {[%emt 0:00:32]} Ng4 {[%emt 0:00:00]} 12. Bd2 {[%emt 0:00:03]} e5 {[%emt 0:00:13]} 1/2-1/2

[Event "11th LCC Super Blitz 2019"]
[Site "London"]
[Date "2019.12.08"]
[Round "1.9"]
[White "Pappelis, Dimitrios"]
[Black "Sandhu, Manvith"]
[Result "1-0"]
[ECO "B22"]
[WhiteElo "2160"]
[BlackElo "1673"]
[Annotator "NA"]
[PlyCount "69"]
[EventDate "2019.12.08"]
[EventType "swiss"]
[EventCountry "ENG"]
[SourceTitle "playchess.com"]
[Source "ChessBase"]
[SourceQuality "1"]
[TimeControl "180+2"]

1. c4 {[%emt 0:00:00]} c6 {[%emt 0:00:00]} 2. e4 {[%emt 0:00:01]} d5 {[%emt 0:00:12]} 3. exd5 {[%emt 0:00:01]} cxd5 {[%emt 0:00:01]} 4. d4 {[%emt 0:00:01]} e6 {[%emt 0:00:07]} 5. Nc3 {[%emt 0:00:01]} Nf6 {[%emt 0:00:03]} 6. Nf3 {[%emt 0:00:02]} Nc6 {[%emt 0:00:05]} 7. cxd5 {[%emt 0:00:03]} Nxd5 {[%emt 0:00:03]} 8. Bd3 {[%emt 0:00:02]} Bb4 {[%emt 0:00:04]} 9. Bd2 {[%emt 0:00:02]} Nxc3 {[%emt 0:00:05]} 10. bxc3 {[%emt 0:00:01]} Bd6 {[%emt 0:00:04]} 11. O-O {[%emt 0:00:03]} O-O {[%emt 0:00:02]} 12. Re1 {[%emt 0:00:07]} Qc7 {[%emt 0:00:03]} 13. h3 {[%emt 0:00:10]} b6 {[%emt 0:00:02]} 14. Bxh7+ {[%emt 0:00:14]} Kh8 {[%emt 0:00:16]} 15. Bd3 {[%emt 0:00:17]} Bf4 {[%emt 0:00:14]} 16. Bxf4 {[%emt 0:00:43]} Qxf4 {[%emt 0:00:03]} 17. Re4 {[%emt 0:00:02]} Qf6 {[%emt 0:00:37]} 18. Rh4+ {[%emt 0:00:23]} Kg8 {[%emt 0:00:02]} 19. Bh7+ {[%emt 0:00:24]} Kh8 {[%emt 0:00:01]} 20. Be4+ {[%emt 0:00:02]} Kg8 {[%emt 0:00:05]} 21. Bxc6 {[%emt 0:00:02]} Rb8 {[%emt 0:00:02]} 22. Qd3 {[%emt 0:00:12]} g6 {[%emt 0:00:05]} 23. Re1 {[%emt 0:00:06]} Rd8 {[%emt 0:00:22]} 24. Qe4 {[%emt 0:00:12]} Rd6 {[%emt 0:00:08]} 25. Ne5 {[%emt 0:00:03]} Qg7 {[%emt 0:00:28]} 26. Rf4 {[%emt 0:00:12]} f5 {[%emt 0:00:18]} 27. Qf3 {[%emt 0:00:01]} g5 {[%emt 0:00:08]} 28. Qh5 {[%emt 0:00:17]} gxf4 {[%emt 0:00:02]} 29. Qe8+ {[%emt 0:00:01]} Kh7 {[%emt 0:00:03]} 30. Qh5+ {[%emt 0:00:02]} Kg8 {[%emt 0:00:01]} 31. Qe8+ {[%emt 0:00:03]} Kh7 {[%emt 0:00:01]} 32. Qh5+ {[%emt 0:00:02]} Kg8 {[%emt 0:00:03]} 33. Be8 {[%emt 0:00:05]} Bb7 {[%emt 0:00:06]} 34. Bf7+ {[%emt 0:00:01]} Kf8 {[%emt 0:00:03]} 35. d5 {[%emt 0:00:06]} 1-0

[Event "11th LCC Super Blitz 2019"]
[Site "London"]
[Date "2019.12.08"]
[Round "1.9"]
[White "Balaji, Aaravamudhan"]
[Black "Fisher, Neal"]
[Result "1-0"]
[ECO "D25"]
[WhiteElo "2120"]
[BlackElo "1522"]
[Annotator "NA"]
[PlyCount "38"]
[EventDate "2019.12.08"]
[EventType "swiss"]
[EventCountry "ENG"]
[SourceTitle "playchess.com"]
[Source "ChessBase"]
[SourceQuality "1"]
[TimeControl "180+2"]

1. d4 {[%emt 0:00:00]} d5 {[%emt 0:00:00]} 2. c4 {[%emt 0:00:00]} dxc4 {[%emt 0:00:01]} 3. Nf3 {[%emt 0:00:00]} Nf6 {[%emt 0:00:02]} 4. e3 {[%emt 0:00:01]} c6 {[%emt 0:00:01]} 5. Bxc4 {[%emt 0:00:01]} e6 {[%emt 0:00:05]} 6. O-O {[%emt 0:00:02]} Be7 {[%emt 0:00:01]} 7. Nbd2 {[%emt 0:00:03]} O-O {[%emt 0:00:02]} 8. b3 {[%emt 0:00:04]} Nbd7 {[%emt 0:00:04]} 9. Bb2 {[%emt 0:00:01]} Nb6 {[%emt 0:00:02]} 10. Be2 {[%emt 0:00:02]} Qc7 {[%emt 0:00:03]} 11. Qc2 {[%emt 0:00:03]} Bb4 {[%emt 0:00:08]} 12. e4 {[%emt 0:00:07]} Bxd2 {[%emt 0:00:02]} 13. Nxd2 {[%emt 0:00:01]} Re8 {[%emt 0:00:05]} 14. e5 {[%emt 0:00:03]} Nfd5 {[%emt 0:00:02]} 15. Ne4 {[%emt 0:00:02]} Qe7 {[%emt 0:00:09]} 16. Nd6 {[%emt 0:00:05]} Rd8 {[%emt 0:00:04]} 17. a3 {[%emt 0:00:16]} Nf4 {[%emt 0:00:04]} 18. Bf3 {[%emt 0:00:04]} Ng6 {[%emt 0:00:08]} 19. b4 {[%emt 0:00:09]} Nd5 {[%emt 0:00:02]} 1-0

[Event "11th LCC Super Blitz 2019"]
[Site "London"]
[Date "2019.12.08"]
[Round "1.9"]
[White "Lovell, William Pm"]
[Black "Marusenko, Petr"]
[Result "0-1"]
[ECO "A12"]
[WhiteElo "1831"]
[BlackElo "2085"]
[Annotator "NA"]
[PlyCount "94"]
[EventDate "2019.12.08"]
[EventType "swiss"]
[EventCountry "ENG"]
[SourceTitle "playchess.com"]
[Source "ChessBase"]
[SourceQuality "1"]
[TimeControl "180+2"]

1. c4 {[%emt 1:13:14]} c6 {[%emt 0:00:05]} 2. Nf3 {[%emt 0:00:01]} d5 3. b3 Nf6 {[%emt 0:00:02]} 4. g3 Bf5 {[%emt 0:00:01]} 5. Bg2 {[%emt 0:00:02]} e6 {[%emt 0:00:01]} 6. d3 h6 {[%emt 0:00:01]} 7. Bb2 Nbd7 {[%emt 0:00:04]} 8. O-O {[%emt 0:00:02]} Bc5 9. Nbd2 {[%emt 0:00:11]} O-O {[%emt 0:00:02]} 10. Qc2 {[%emt 0:00:03]} a5 {[%emt 0:00:03]} 11. e4 {[%emt 0:00:02]} dxe4 {[%emt 0:00:11]} 12. dxe4 {[%emt 0:00:06]} Bh7 {[%emt 0:00:01]} 13. Rad1 {[%emt 0:00:07]} Qb6 14. h3 {[%emt 0:00:24]} a4 {[%emt 0:00:08]} 15. Ne1 {[%emt 0:00:32]} axb3 {[%emt 0:00:07]} 16. axb3 {[%emt 0:00:01]} Bd4 {[%emt 0:00:10]} 17. Nd3 {[%emt 0:00:17]} Bxb2 {[%emt 0:00:03]} 18. Qxb2 {[%emt 0:00:02]} Rfd8 {[%emt 0:00:05]} 19. Ne5 {[%emt 0:00:16]} Nc5 {[%emt 0:00:17]} 20. Rfe1 {[%emt 0:00:02]} Qb4 {[%emt 0:00:12]} 21. f3 {[%emt 0:00:16]} Nfd7 {[%emt 0:00:24]} 22. Nxd7 {[%emt 0:00:04]} Rxd7 23. Nb1 {[%emt 0:00:12]} Rad8 {[%emt 0:00:11]} 24. Rxd7 {[%emt 0:00:09]} Qxe1+ {[%emt 0:00:02]} 25. Kh2 {[%emt 0:00:01]} Rxd7 {[%emt 0:00:01]} 26. Qa2 {[%emt 0:00:12]} Rd8 {[%emt 0:00:08]} 27. h4 {[%emt 0:00:08]} Bg6 {[%emt 0:00:09]} 28. b4 Nd3 {[%emt 0:00:02]} 29. b5 {[%emt 0:00:08]} Qb4 {[%emt 0:00:20]} 30. bxc6 {[%emt 0:00:02]} bxc6 {[%emt 0:00:01]} 31. g4 {[%emt 0:00:19]} h5 {[%emt 0:00:02]} 32. g5 Nf4 {[%emt 0:00:03]} 33. Bf1 {[%emt 0:00:04]} Qe1 {[%emt 0:00:05]} 34. Kg1 {[%emt 0:00:10]} Qxh4 {[%emt 0:00:03]} 35. Qf2 {[%emt 0:00:13]} Nh3+ {[%emt 0:00:06]} 36. Bxh3 {[%emt 0:00:02]} Qxh3 37. Nc3 {[%emt 0:00:02]} h4 {[%emt 0:00:04]} 38. Na4 {[%emt 0:00:01]} Qg3+ {[%emt 0:00:03]} 39. Qxg3 {[%emt 0:00:02]} hxg3 40. Kg2 Bh5 {[%emt 0:00:03]} 41. Kxg3 {[%emt 0:00:02]} Rd3 42. Nc5 {[%emt 0:00:01]} Rxf3+ {[%emt 0:00:02]} 43. Kg2 {[%emt 0:00:01]} Ra3 {[%emt 0:00:01]} 44. Nd7 {[%emt 0:00:03]} Bg6 45. e5 {[%emt 0:00:01]} Rc3 {[%emt 0:00:02]} 46. Nb6 {[%emt 0:00:03]} Bd3 {[%emt 0:00:04]} 47. Kf2 {[%emt 0:00:01]} Bxc4 {[%emt 0:00:01]} 0-1

[Event "11th LCC Super Blitz 2019"]
[Site "London"]
[Date "2019.12.08"]
[Round "1.10"]
[White "Vaidya, Raghav"]
[Black "Zulfic, Fedja"]
[Result "0-1"]
[ECO "A16"]
[WhiteElo "1467"]
[BlackElo "2032"]
[Annotator "NA"]
[PlyCount "80"]
[EventDate "2019.12.08"]
[EventType "swiss"]
[EventCountry "ENG"]
[SourceTitle "playchess.com"]
[Source "ChessBase"]
[SourceQuality "1"]
[TimeControl "180+2"]

1. c4 {[%emt 0:00:00]} Nf6 {[%emt 0:00:03]} 2. Nc3 {[%emt 0:00:01]} d5 {[%emt 0:00:01]} 3. cxd5 {[%emt 0:00:04]} Nxd5 {[%emt 0:00:01]} 4. g3 {[%emt 0:00:05]} g6 {[%emt 0:00:09]} 5. Bg2 {[%emt 0:00:03]} Nb6 {[%emt 0:00:01]} 6. Nf3 {[%emt 0:00:06]} Bg7 {[%emt 0:00:01]} 7. O-O {[%emt 0:00:07]} O-O {[%emt 0:00:02]} 8. d3 {[%emt 0:00:01]} Nc6 {[%emt 0:00:02]} 9. e4 {[%emt 0:00:02]} e5 {[%emt 0:00:34]} 10. a3 {[%emt 0:00:01]} Nd4 {[%emt 0:00:06]} 11. Be3 {[%emt 0:00:16]} Bg4 {[%emt 0:00:11]} 12. Bxd4 {[%emt 0:00:07]} exd4 {[%emt 0:00:03]} 13. Nb1 {[%emt 0:00:02]} c5 {[%emt 0:00:27]} 14. h3 {[%emt 0:00:03]} Bxf3 {[%emt 0:00:08]} 15. Bxf3 {[%emt 0:00:10]} c4 {[%emt 0:00:01]} 16. Bg2 {[%emt 0:00:09]} Rc8 {[%emt 0:00:03]} 17. dxc4 {[%emt 0:00:14]} Nxc4 {[%emt 0:00:02]} 18. b3 {[%emt 0:00:03]} Nb2 {[%emt 0:00:12]} 19. Qd2 {[%emt 0:00:08]} d3 {[%emt 0:00:01]} 20. Ra2 {[%emt 0:00:07]} Rc2 {[%emt 0:00:02]} 21. Qe3 {[%emt 0:00:22]} Bd4 {[%emt 0:00:07]} 22. Qf4 {[%emt 0:00:07]} Qb6 {[%emt 0:00:16]} 23. b4 {[%emt 0:00:08]} Qe6 {[%emt 0:00:10]} 24. Rxb2 {[%emt 0:00:06]} Bxb2 {[%emt 0:00:05]} 25. Rd1 {[%emt 0:00:05]} Rd8 {[%emt 0:00:02]} 26. Bf1 {[%emt 0:00:05]} Qb3 {[%emt 0:00:06]} 27. Nd2 {[%emt 0:00:08]} Qxa3 {[%emt 0:00:04]} 28. Nc4 {[%emt 0:00:09]} Rxc4 {[%emt 0:00:05]} 29. Qe3 {[%emt 0:00:04]} Rcd4 {[%emt 0:00:05]} 30. Qd2 {[%emt 0:00:07]} Bc3 {[%emt 0:00:02]} 31. Qe3 {[%emt 0:00:03]} Qxb4 {[%emt 0:00:02]} 32. Kg2 {[%emt 0:00:03]} a5 {[%emt 0:00:02]} 33. Bxd3 {[%emt 0:00:04]} a4 {[%emt 0:00:04]} 34. Rb1 {[%emt 0:00:04]} Rxd3 {[%emt 0:00:04]} 35. Qxd3 {[%emt 0:00:04]} Rxd3 {[%emt 0:00:03]} 36. Rxb4 {[%emt 0:00:01]} Bxb4 {[%emt 0:00:01]} 37. f4 {[%emt 0:00:01]} a3 {[%emt 0:00:01]} 38. e5 {[%emt 0:00:01]} a2 {[%emt 0:00:01]} 39. f5 {[%emt 0:00:01]} a1=Q {[%emt 0:00:02]} 40. e6 {[%emt 0:00:01]} Qb2+ {[%emt 0:00:02]} 0-1